Cogmind - Beta 13 *** ADVENTURER MODE // 2024.07.21 @ 19:50:03 Player: AnotherZach Result: Destroyed by FT-CK5(R) with Subdweller Beam Cannon Performance ------------- Evolutions (0) 0 Regions Visited (3) 600 Robots Destroyed (46) 230 Value Destroyed (1029) 1029 Prototype IDs (0) 0 Alien Tech Used (0) 0 Bonus (0) 0 TOTAL SCORE: 1859 Bonus ------- None Cogmind --------- Core Integrity 0/250 Matter 280/300 Energy 178/200 System Corruption 0% Temperature Cool (9) Movement Rolling (120) Ox1 Location -10/Subcaves Parts ------- > --- POWER (1) -------- Subdweller Power Source > --- PROPULSION (2) --- Subdweller Monowheel Subdweller Monowheel > --- UTILITY (2) ------ Improved Heat Sink High-capacity Storage Unit > --- WEAPON (2) ------- Particle Gun Beam Cannon > --- INVENTORY (20) --- Light Ion Engine Subdweller Power Source Light Treads Light Treads Wheel Wheel Wheel Heat Sink Disposable Heat Sink High-capacity Storage Unit Small Matter Pod (50) High-capacity Matter Pod (200) Compact Matter Pod (150) Experimental Sensor Array Seismic Detector Assault Rifle Assault Rifle Subdweller Machine Gun Mining Laser Heavy Explosive Trap Peak State ------------ > --- POWER ------------ Subdweller Power Source > --- PROPULSION ------- Subdweller Monowheel Subdweller Monowheel > --- UTILITY ---------- Improved Heat Sink High-capacity Storage Unit > --- WEAPON ----------- Particle Gun Beam Cannon > --- INVENTORY -------- Subdweller Power Source Light Treads Light Treads Wheel Wheel Wheel Wheel Flight Unit Heat Sink High-capacity Storage Unit Small Matter Pod High-capacity Matter Pod Compact Matter Pod Experimental Sensor Array Seismic Detector Assault Rifle Assault Rifle Subdweller Machine Gun Mining Laser Heavy Explosive Trap [Rating: 16] Favorites ----------- Power Light Nuclear Core Engine Subdweller Power Source Power Core Light Nuclear Core Propulsion Wheel Wheel Wheel Utility High-capacity Storage Unit Device Heat Sink Storage High-capacity Storage Unit Weapon Particle Gun Energy Gun Particle Gun Energy Cannon Beam Cannon Ballistic Gun Assault Rifle Ballistic Cannon Light Cannon Special Weapon Mining Laser Build | -11 -10 -10 -10 ------- Run | Yrd Mat Min Sub Slots Evolved . | . . . . Power . | . . . . Propulsion . | . . . . Utility . | . . . . Weapon . | . . . . Parts Attached 45 | 8 22 4 11 Power 8 | 1 4 . 3 Engine 5 | 1 1 . 3 Core 3 | . 3 . . Reactor . | . . . . Propulsion 9 | 2 4 1 2 Treads . | . . . . Leg . | . . . . Wheel 9 | 2 4 1 2 Hover . | . . . . Flight . | . . . . Utility 7 | 2 4 1 . Device 5 | 1 3 1 . Storage 2 | 1 1 . . Processor . | . . . . Hackware . | . . . . Protection . | . . . . Artifact . | . . . . Weapon 21 | 3 10 2 6 Energy Gun 6 | . 3 . 3 Energy Cannon 2 | . 1 . 1 Ballistic Gun 8 | 3 4 1 . Ballistic Cannon 1 | . 1 . . Launcher . | . . . . Special Weapon 4 | . 1 1 2 Impact Weapon . | . . . . Slashing Weapon . | . . . . Piercing Weapon . | . . . . Special Melee Weapon . | . . . . Unidentified Prototypes . | . . . . Parts Lost 6 | . 3 1 2 Power 2 | . 1 . 1 Propulsion 2 | . 1 1 . Utility . | . . . . Weapon 2 | . 1 . 1 Highest Loss Streak 2 | . 2 1 2 To Critical Strikes . | . . . . Average Slot Usage (%) 99 | . 99 99 99 Engine 7 | . 6 . 12 Core 6 | . 7 14 1 Wheel 27 | . 27 27 28 Device 14 | . 14 14 14 Storage 14 | . 14 14 14 Energy Gun 10 | . 14 . 11 Energy Cannon 7 | . 1 14 13 Ballistic Gun 6 | . 8 12 . Special Weapon 2 | . 2 1 1 Naked Turns . | . . . . Heaviest Build 52 | 14 52 51 52 Greatest Support 40 | 26 26 26 40 Greatest Overweight (x) 5 | . 5 2 2 Average Overweight (x) 1 | . . 1 1 Largest Inventory Capacity 20 | 8 20 20 20 Average Capacity 18 | 6 17 20 20 Most Carried 20 | 8 14 20 20 Average Carried 14 | 3 10 16 19 Final Capacity 20 | 8 20 20 20 Final Carried 20 | 8 13 20 20 Class Distribution -------------------- 94% | Scavenger-Mutant 5% | Mutant Dominant Class ---------------- Scavenger-Mutant | -10/Materials Scavenger-Mutant | -10/Mines Scavenger-Mutant | -10/Subcaves Resources | -11 -10 -10 -10 ----------- Run | Yrd Mat Min Sub Matter Collected 1161 | 278 619 179 85 Remotely . | . . . . Salvage Created 1584 | 156 928 240 260 Parts 94 | 14 40 27 13 Haulers Intercepted 2 | . 2 . . Recyclers Shooed 1 | . 1 . . Parts Field Recycled . | . . . . Retrieved Matter . | . . . . Parts Self-Destructed 12 | . . . 12 Prevented . | . . . . Kills | -11 -10 -10 -10 ------- Run | Yrd Mat Min Sub Combat Hostiles Destroyed 31 | . 16 8 7 Guns 17 | . 11 3 3 Cannons 14 | . 5 5 4 Classes Destroyed 9 | 2 5 1 1 Worker 2 | . 1 1 . Builder 2 | . 1 1 . Tunneler 5 | 3 1 1 . Hauler 2 | . 2 . . Recycler 3 | 1 2 . . Watcher 1 | . 1 . . Swarmer 8 | . . 6 2 Grunt 18 | . 16 2 . Subdweller 5 | . . . 5 Best Kill Streak 7 | 3 6 7 2 Combat Bots Only 7 | . 5 7 2 Max Kills in Single Turn 1 | 1 1 1 1 Gunslinging . | . . . . Exploded . | . . . . Melee . | . . . . Uniques/NPCs Destroyed . | . . . . Combat | -11 -10 -10 -10 -------- Run | Yrd Mat Min Sub Hostile Shots Fired 137 | . 78 32 27 Missed 27 | . 20 5 2 Damage Taken 1115 | . 518 184 413 Core 264 | . 102 45 117 Absorbed by Shields . | . . . . Ignored by Resistances 312 | . 162 60 90 Core Remaining (%) 100 | 100 . . . Volleys Fired 136 | 7 80 24 25 Largest 2 | 2 2 2 2 Hottest 130 | 40 130 100 125 Shots Fired 246 | 14 143 45 44 Gun 164 | 14 110 21 19 Cannon 65 | . 25 21 19 Launcher . | . . . . Special 17 | . 8 3 6 Kinetic 112 | 14 77 21 . Thermal 134 | . 66 24 44 Explosive . | . . . . Electromagnetic . | . . . . Robot Hit Streak 22 | 7 22 9 15 Robot Miss Streak 2 | 1 2 1 2 Penetration Max . | . . . . Secondary Targets . | . . . . Shots Hit Robots 167 | 9 103 29 26 Core Hits 67 | 5 38 10 14 Critical Kills . | . . . . Critical Parts Destroyed 1 | . 1 . . Critical Strikes 7 | . 6 . 1 Burn 3 | . 2 . 1 Destroy 1 | . 1 . . Blast 3 | . 3 . . Melee Attacks . | . . . . Impact . | . . . . Slashing . | . . . . Piercing . | . . . . Sneak Attacks . | . . . . Combat Hostiles . | . . . . Follow-up Attacks . | . . . . Damage Inflicted 2521 | 84 1529 459 449 Guns 1667 | 84 1182 203 198 Cannons 854 | . 347 256 251 Explosions . | . . . . Melee . | . . . . Ramming . | . . . . Kinetic 1063 | 84 776 203 . Thermal 1458 | . 753 256 449 Explosive . | . . . . Electromagnetic . | . . . . Impact . | . . . . Slashing . | . . . . Piercing . | . . . . Highest Corruption . | . . . . Average Corruption . | . . . . Corruption Purged . | . . . . Corruption Blocked . | . . . . Overload Shots . | . . . . Overflow Damage 35 | . . 35 . Projectiles 35 | . . 35 . Explosions . | . . . . Melee . | . . . . Knockbacks 2 | . 2 . . Impact . | . . . . Kinetic 2 | . 2 . . Secondary . | . . . . Self-Inflicted Damage . | . . . . Shots . | . . . . Rammed . | . . . . Targets Rammed . | . . . . Kicked . | . . . . Crushed . | . . . . Highest Temperature 333 | . 333 22 . Average Temperature 90 | . 93 14 . Received Heat Transfer 480 | . 381 48 51 Effects 4 | . 4 . . Energy Bleed 2 | . 2 . . Interference 2 | . 2 . . Siege Activations . | . . . . Robots Corrupted . | . . . . Combat Hostiles . | . . . . Parts Fried . | . . . . Impact Corruptions . | . . . . Robots Melted . | . . . . Combat Hostiles . | . . . . Parts Melted 11 | . 6 1 4 Heat Transferred 3441 | . 1850 518 1073 Parts Sabotaged . | . . . . Parts Stolen . | . . . . Parts Stripped . | . . . . Power Chain Reactions . | . . . . Alert | -11 -10 -10 -10 ------- Run | Yrd Mat Min Sub Peak Influence 272 | 20 228 272 . Initial 37 | . 11 37 . Average 77 | 6 70 104 . Maximum Alert Level 1 | . 1 1 . Low Security (%) 94 | 100 99 81 . Level 1 5 | . . 18 . Level 2 . | . . . . Level 3 . | . . . . Level 4 . | . . . . Level 5 . | . . . . High Security . | . . . . Max Security . | . . . . Squads Dispatched 3 | . 3 . . Investigation 3 | . 3 . . Extermination . | . . . . Reinforcement . | . . . . Assault . | . . . . Garrison . | . . . . Intercept . | . . . . Searches Triggered . | . . . . Construction Impeded . | . . . . Haulers Reinforced . | . . . . Active Scanning Responses . | . . . . Cargo Convoy Interrupts . | . . . . Stealth | -11 -10 -10 -10 --------- Run | Yrd Mat Min Sub Distress Signals . | . . . . Communications Jammed . | . . . . Distress Signals . | . . . . Times Spotted 46 | . 27 10 9 Peak Tracking Total 4 | . 4 4 2 Tactical Retreats 3 | . 1 2 . Traps | -11 -10 -10 -10 ------- Run | Yrd Mat Min Sub Traps Triggered 4 | . 2 . 2 Indirectly . | . . . . Trap Hack Attempts . | . . . . Triggered . | . . . . Disarmed . | . . . . Reprogrammed . | . . . . Reused . | . . . . Traps Extracted . | . . . . Installed 1 | . . 1 . Triggered . | . . . . Most Traps Carried 2 | . . 2 1 Machines | -11 -10 -10 -10 ---------- Run | Yrd Mat Min Sub Machines Disabled . | . . . . Max in Single Turn . | . . . . Machines Repaired . | . . . . Machines Dismantled . | . . . . Machines Sabotaged . | . . . . Overloaded Fab Kills . | . . . . Hacking | -11 -10 -10 -10 --------- Run | Yrd Mat Min Sub Machines Accessed 10 | . 10 . . Terminals 8 | . 8 . . Fabricators . | . . . . Repair Stations . | . . . . Recycling Units 2 | . 2 . . Scanalyzers . | . . . . Garrison Access . | . . . . Total Hacks 36 | . 36 . . Successful 27 | . 27 . . Failed 8 | . 8 . . Catastrophic 1 | . 1 . . Database Lockouts 1 | . 1 . . Manual 24 | . 24 . . Terminals 25 | . 25 . . Fabricators . | . . . . Repair Stations . | . . . . Recycling Units 11 | . 11 . . Scanalyzers . | . . . . Garrison Access . | . . . . Terminal Hacks 13 | . 13 . . Record 1 | . 1 . . Robot Analysis 4 | . 4 . . Emergency Access Points 1 | . 1 . . Terminal Index 1 | . 1 . . Unreport Threat 2 | . 2 . . Dispatch Records 1 | . 1 . . Hauler Manifests 1 | . 1 . . Zone Layout 2 | . 2 . . Fabricator Hacks . | . . . . Repair Station Hacks . | . . . . Recycling Unit Hacks 2 | . 2 . . Retrieve Components 2 | . 2 . . Scanalyzer . | . . . . Garrison Access Hacks . | . . . . Unauthorized Hacks 12 | . 12 . . Terminals 8 | . 8 . . Track 3 | . 3 . . Botnet 5 | . 5 . . Fabricators . | . . . . Repair Stations . | . . . . Recycling Units 4 | . 4 . . Reject 2 | . 2 . . Recyclers 1 | . 1 . . Tunnel 1 | . 1 . . Scanalyzers . | . . . . Garrison Access . | . . . . Data Cores Recovered . | . . . . Used . | . . . . Hacking Detections 8 | . 8 . . Full Trace Events 1 | . 1 . . Feedback Events . | . . . . Feedback Blocked . | . . . . Robot Schematics Acquired . | . . . . Robots Built . | . . . . Authchips . | . . . . Time . | . . . . Total Robot Build Rating . | . . . . Part Schematics Acquired . | . . . . Parts Built . | . . . . Authchips . | . . . . Time . | . . . . Total Part Build Rating . | . . . . Parts Repaired . | . . . . Time . | . . . . Parts Recycled . | . . . . Recycled Matter . | . . . . Retrieved Matter . | . . . . Retrieved Components 5 | . 5 . . Parts Scanalyzed . | . . . . Part Schematics Acquired . | . . . . Parts Damaged . | . . . . Bothacking | -11 -10 -10 -10 ------------ Run | Yrd Mat Min Sub Used RIF Installer . | . . . . Robots Hacked . | . . . . Non-combat . | . . . . Combat . | . . . . Robot Hacks Applied . | . . . . Relay Couplers Released . | . . . . Fabnet Peak Effective % . | . . . . Robots Rewired . | . . . . Allies Hacked . | . . . . Hacks Repelled . | . . . . Allies | -11 -10 -10 -10 -------- Run | Yrd Mat Min Sub Total Allies . | . . . . Largest Group . | . . . . Highest-Rated Group . | . . . . Highest-Rated Ally . | . . . . Total Orders . | . . . . Ally Attacks . | . . . . Total Damage . | . . . . Kills . | . . . . Allies Corrupted . | . . . . Allies Melted . | . . . . Intel | -11 -10 -10 -10 ------- Run | Yrd Mat Min Sub Robot Analysis Total 4 | . 4 . . Derelict Logs Recovered 3 | . . 2 1 Drone Launches . | . . . . Drone Recoveries . | . . . . Exploration | -11 -10 -10 -10 ------------- Run | Yrd Mat Min Sub Turns Passed 3197 | 89 1492 591 1025 Spaces Moved 2203 | 53 974 447 729 Core 6 | 6 . . . Treads . | . . . . Legs . | . . . . Wheels 2197 | 47 974 447 729 Hover . | . . . . Flight . | . . . . Fastest Speed 50 | 50 80 105 107 Average Speed 106 | 85 99 107 116 Slowest Speed 155 | 90 155 110 120 Overloaded Moves . | . . . . Propulsion Burnouts . | . . . . Robots Hopped . | . . . . Cave-ins Triggered . | . . . . Exploration Rate (%) 61 | 5 98 88 54 Regions Visited 3 Branch Regions 2 Pre-discovered Areas 2 | . 1 1 . Known Exits Taken . | . . . . Unknown Exits Taken 3 | 1 1 1 . Scrap Searched 2 | . . 1 1 Spaces Dug 2 | . 2 . . Terrain Destroyed 2 | . 2 . . Melee . | . . . . Projectile 2 | . 2 . . AOE . | . . . . Terrain Rammed . | . . . . Walls Destroyed . | . . . . Machines Disabled . | . . . . Actions | -11 -10 -10 -10 --------- Run | Yrd Mat Min Sub Total 2779 | 84 1343 505 847 Wait 316 | . 234 16 66 Move 2200 | 52 973 446 729 Hop . | . . . . Pick Up 58 | 16 22 11 9 Fast Attach . | . . . . Attach 19 | 7 7 1 4 Detach . | . . . . Swap 26 | 1 15 3 7 Drop 23 | 1 12 3 7 Fire 136 | 7 80 24 25 Melee . | . . . . Ram . | . . . . Kick . | . . . . Crush . | . . . . Escape Stasis . | . . . . Rewire . | . . . . Trap 1 | . . 1 . Miscellaneous . | . . . . Route ------- -11/Scrapyard -10/Materials (discovered 5 exits: [*Mat x3] / [*Min x2]) -10/Mines (discovered 3 exits: [*Mat x2] / [*Sub]) -10/Subcaves History --------- Turn | Location | Event 5 | -11/Scrapyard | Discovered new exit (range 16) 90 | -11/Scrapyard | Entered Materials 274 | -10/Materials | Central database locked down 336 | -10/Materials | Discovered new exit (range 15) 347 | -10/Materials | Discovered new exit (range 10) 379 | -10/Materials | Discovered new exit (range 13) 468 | -10/Materials | Build established: Scavenger-Mutant 613 | -10/Materials | Discovered new exit (range 15) 1514 | -10/Materials | Discovered new exit (range 8) 1582 | -10/Materials | Entered Mines 1610 | -10/Mines | Found a hidden stash of uninstalled traps 1656 | -10/Mines | Discovered new exit (range 9) 1702 | -10/Mines | Learned Materials security intel 1718 | -10/Mines | Discovered new exit (range 7) 1746 | -10/Mines | Learned location of Storage (-7) 1846 | -10/Mines | Core integrity fell below 50% 1904 | -10/Mines | Destroyed 7 combat bots 2027 | -10/Mines | Found a damaged Exp. Sensor Array with a note attached 2030 | -10/Mines | Found Prototype Device 2165 | -10/Mines | Discovered new exit (range 9) 2173 | -10/Mines | Entered Subcaves 2336 | -10/Subcaves | Learned Materials terminal intel 2408 | -10/Subcaves | Core integrity fell below 20% 2451 | -10/Subcaves | Shifting Twisted Machinery released Mak. Kinetic Plating 2459 | -10/Subcaves | Shifting Twisted Machinery released Sub. Monowheel 2481 | -10/Subcaves | A swath of the cavern ceiling suddenly collapsed 3198 | -10/Subcaves | Destroyed by FT-CK5(R) with Subdweller Beam Cannon Last Messages --------------- 02560_ Acquired Sub. Monowheel. 02562_ Dropped Wheel. 02564_ Acquired Disposable Heat Sink. 02801_ Sub. Power Source shoots sparks and powers down. 02801_ Dropped Broken Sub. Power Source. 02812_ Subatomizers dissect the Broken Sub. Power Source. 02837_ Sub. Optics melted. 02837_ Sub. Monowheel melted. 02837_ NB-TO3(R) destroyed. 02850_ Acquired 20 matter. 03079_ Acquired Lgt. Ion Engine. 03080_ Acquired 15 matter. 03100_ Dropped Flight Unit. 03100_ Acquired Multitool. 03101_ Dropped Multitool. 03117_ Acquired 5 matter. 03120_ Acquired Sub. Power Source. 03126_ Acquired 10 matter. Map ----- +----------------------------------------------------+ | ????????????????????????????????????########## | | ???????????????????????????????????????####?## | | ???????????????????????????????????????# ## | | ??????????????????????????????????????## # | | ??????????????????????????????????????# ## | | ??????????????????????????????????????# #? | | ?????????????????????????????????????## #? | | ?????????????????????????????????????# ## | | ?????????????????????????????????????# # | | ?????????????????????????????????????# | | ?????????????????????????????????????###### | | ??????????????????????????????????????????## | | ???????????????????????????????????????????#### | | ??????????????????????????????????????????????## | | ???????????????????????????????????????#######?# | | ??????????????????????????????????????## ##### | | ??????????????##????????????????????### #### | | ????????????###" #??????#######????## ## | | ????????????# " ??#### #????# | | ????????????#" " ## # #?????# | | ????????????# " #?????#### | | ???????????? "" #????????## | | ???????????? """ ???# #??????????### | | ??????????????# #??####RR #######???????# | | ???????????????# #### # ### ##??????## | | ???????????????# @ ## ##??????# | | ???????????????# #?? ##?????#### | | ???????????????## ### ##???# #????????## | | ????????????????#######?# ##???# #####?????## | | ????????????????????????# "#???# ###???## | | ????????????????????????#" ##### " ##### | | ???????????????????????##" ## ###"""## | | ?????????????????????###"" ## ### "####| | | ????????????????????## """ ## ### #?##= # | | ????????????????????# """" ## #?##### # | | ????????????????????## ##" ## & ###### | | ?????????????????????##?## &%& "## | | ?????????????????????????## =& | | ??????????????????????????### | | ????????????????????????????# | | ????????????????????????????## ## ### | | ?????????????????????????????########### ##?## | | ???????????????????????????????????????# ##????# | | ???????????????????????????????????????# #?????? | | ???????????????????????????????????????## #?????? | | ????????????????????????????????????????## #?????? | | ?????????????????????????????????????????###?????? | | ????????????????????????????????????????????# ??? | | ???????????????????????????????????????????? ?? | | ??????????????????????????????????????????## ??? | +----------------------------------------------------+ Best States ------------- Heat Dissipation 39 Energy Generation 15 Energy Capacity 250 Matter Stores 300 Matter Capacity 300 Sight Range 16 Terrain Scan Density 10 Resistance: KI 20 Resistance: TH 20 Resistance: EX 20 Resistance: EM 20 Resistance: I 20 Resistance: S 20 Resistance: P 20 Evasion (%) 44 Offensive Hacking 10 Item Schematics ----------------- None Robot Schematics ------------------ None Fabricated ------------ Nothing Alien Tech Used ----------------- None Achievements -------------- None Challenges ------------ None Game ------ Seed ReactionBlastBrace Manual? 0 Play Time 00:21:00 Cumulative 500.3 hours Start 2024.07.21 @ 19:30:34 End 2024.07.21 @ 19:50:03 Sessions 1 Manual Loads 0 Difficulty Adventurer Special Mode None Game No. 90 Rogue 0 Adventurer 90 Explorer 0 Win Type - Total 6 Types 3/0/1/2/0/0/0/0/0 Lore% 60 Gallery% 81 Achievement% 69 Wizard Run 0 Options --------- Layout 2 ASCII 0 Keyboard 0 Movement Mouse Keybinds 0 Fullscreen 1 Font 24/Smallcaps Map View 50x49 Zoom Use 0% Tactical HUD 1 Map Filters NONE Filters NONE Steam 1 RUN: 837dd89e-8944-46e4-bdc5-799efa871a7f